[Event "Late-Titled-Tuesday-Blitz-May-28-2024"]
[Site "Chess.com"]
[Date "2024.05.28"]
[Round "8"]
[White "dolynachess"]
[Black "jinxy2009"]
[Result "1-0"]
[WhiteElo "2510"]
[BlackElo "2288"]
[TimeControl "180+1"]
[EndTime "15:28:29 PDT"]
[Termination "dolynachess won by resignation"]

1. d4 {[%clk 0:03:00.9]} 1... d5 {[%clk 0:02:59.7]} 2. c4 {[%clk 0:03:01.8]}
2... c6 {[%clk 0:03:00.1]} 3. Nf3 {[%clk 0:03:01.8]} 3... Nf6 {[%clk 0:03:00.2]}
4. g3 {[%clk 0:03:00.2]} 4... e6 {[%clk 0:02:58.8]} 5. Bg2 {[%clk 0:03:00.6]}
5... dxc4 {[%clk 0:02:55.7]} 6. O-O {[%clk 0:03:01.5]} 6... Be7 {[%clk
0:02:54.8]} 7. Nc3 {[%clk 0:03:02.4]} 7... O-O {[%clk 0:02:53.8]} 8. e4 {[%clk
0:03:02.5]} 8... b5 {[%clk 0:02:54.1]} 9. a4 {[%clk 0:02:58.8]} 9... b4 {[%clk
0:02:49.8]} 10. e5 {[%clk 0:02:58.6]} 10... Nd5 {[%clk 0:02:47.8]} 11. Ne4
{[%clk 0:02:55.9]} 11... f5 {[%clk 0:02:44.1]} 12. exf6 {[%clk 0:02:47.3]} 12...
Nxf6 {[%clk 0:02:44]} 13. Ne5 {[%clk 0:02:40]} 13... Ba6 {[%clk 0:02:28.4]} 14.
Ng5 {[%clk 0:02:16.3]} 14... Qd6 {[%clk 0:02:18.1]} 15. Bf4 {[%clk 0:02:07.6]}
15... Nd5 {[%clk 0:02:07.6]} 16. Nxc4 {[%clk 0:01:53.6]} 16... Qd8 {[%clk
0:02:07.4]} 17. Nxe6 {[%clk 0:01:45.3]} 17... Qc8 {[%clk 0:02:07]} 18. Qg4
{[%clk 0:01:26]} 18... g6 {[%clk 0:01:33.2]} 19. Ne5 {[%clk 0:00:29.1]} 19...
Nf6 {[%clk 0:01:13.2]} 20. Qh3 {[%clk 0:00:24.4]} 20... Bxf1 {[%clk 0:01:10.6]}
21. Rxf1 {[%clk 0:00:25.3]} 21... Re8 {[%clk 0:01:06.1]} 22. Rc1 {[%clk
0:00:20.5]} 22... Bd6 {[%clk 0:00:48]} 23. Nxc6 {[%clk 0:00:14.6]} 23... Nxc6
{[%clk 0:00:27.2]} 24. Rxc6 {[%clk 0:00:13.3]} 24... Qxe6 {[%clk 0:00:26.9]} 25.
Rxd6 {[%clk 0:00:10.5]} 25... Qxh3 {[%clk 0:00:25.4]} 26. Bxh3 {[%clk
0:00:11.4]} 26... Rad8 {[%clk 0:00:24.2]} 27. Rxf6 {[%clk 0:00:10.5]} 27... Rxd4
{[%clk 0:00:23.7]} 28. Be3 {[%clk 0:00:08.6]} 28... Rd1+ {[%clk 0:00:21.2]} 29.
Kg2 {[%clk 0:00:08.8]} 29... Rb1 {[%clk 0:00:20.7]} 30. Bd4 {[%clk 0:00:09.1]}
30... Rd1 {[%clk 0:00:15.4]} 31. Bxa7 {[%clk 0:00:06.5]} 31... Rd2 {[%clk
0:00:14.7]} 32. b3 {[%clk 0:00:05.9]} 32... Rd3 {[%clk 0:00:14.6]} 33. Rb6
{[%clk 0:00:04.4]} 33... Rxb3 {[%clk 0:00:14.1]} 34. Be6+ {[%clk 0:00:04.8]}
34... Rxe6 {[%clk 0:00:14.3]} 35. Rxe6 {[%clk 0:00:05.5]} 35... Ra3 {[%clk
0:00:14.8]} 36. Rb6 {[%clk 0:00:04.9]} 36... Rxa4 {[%clk 0:00:15.1]} 37. Bb8
{[%clk 0:00:05.4]} 37... Kg7 {[%clk 0:00:13.6]} 38. Bd6 {[%clk 0:00:05.5]} 1-0

[Event "Late-Titled-Tuesday-Blitz-May-28-2024"]
[Site "Chess.com"]
[Date "2024.05.28"]
[Round "8"]
[White "DeTimmerman"]
[Black "yaguigor"]
[Result "1-0"]
[WhiteElo "2753"]
[BlackElo "2587"]
[TimeControl "180+1"]
[EndTime "15:28:31 PDT"]
[Termination "DeTimmerman won on time"]

1. b4 {[%clk 0:03:00]} 1... d5 {[%clk 0:02:57.5]} 2. Bb2 {[%clk 0:02:59.5]} 2...
Bg4 {[%clk 0:02:53.5]} 3. Nf3 {[%clk 0:02:58.9]} 3... Nd7 {[%clk 0:02:52.2]} 4.
b5 {[%clk 0:02:56.6]} 4... e6 {[%clk 0:02:47.4]} 5. e3 {[%clk 0:02:56.2]} 5...
Ngf6 {[%clk 0:02:46.7]} 6. c4 {[%clk 0:02:54.6]} 6... c6 {[%clk 0:02:44.2]} 7.
a4 {[%clk 0:02:54.1]} 7... Bd6 {[%clk 0:02:37.1]} 8. Be2 {[%clk 0:02:50.8]} 8...
O-O {[%clk 0:02:35.5]} 9. O-O {[%clk 0:02:50]} 9... e5 {[%clk 0:02:32.7]} 10. d4
{[%clk 0:02:47.9]} 10... exd4 {[%clk 0:02:24]} 11. Nxd4 {[%clk 0:02:46.8]} 11...
Bxe2 {[%clk 0:02:22.5]} 12. Qxe2 {[%clk 0:02:47.7]} 12... c5 {[%clk 0:01:53.2]}
13. Nf3 {[%clk 0:02:47]} 13... dxc4 {[%clk 0:01:48.2]} 14. Qxc4 {[%clk
0:02:47.9]} 14... Qe7 {[%clk 0:01:47]} 15. Nbd2 {[%clk 0:02:41.2]} 15... b6
{[%clk 0:01:44.4]} 16. Rfd1 {[%clk 0:02:33.2]} 16... Rad8 {[%clk 0:01:43]} 17.
a5 {[%clk 0:02:32.5]} 17... Ne5 {[%clk 0:01:41.1]} 18. Nxe5 {[%clk 0:02:28.4]}
18... Bxe5 {[%clk 0:01:42]} 19. Bxe5 {[%clk 0:02:28.7]} 19... Qxe5 {[%clk
0:01:41.5]} 20. Nf3 {[%clk 0:02:23]} 20... Qe4 {[%clk 0:01:30.4]} 21. Qa2 {[%clk
0:02:10.2]} 21... Nd5 {[%clk 0:01:19.5]} 22. Qb2 {[%clk 0:01:49.6]} 22... bxa5
{[%clk 0:00:53.1]} 23. Rxa5 {[%clk 0:01:39.1]} 23... Nxe3 {[%clk 0:00:50.5]} 24.
Re1 {[%clk 0:01:21.7]} 24... Nc4 {[%clk 0:00:20.6]} 25. Qc1 {[%clk 0:01:21.3]}
25... Qd5 {[%clk 0:00:18.5]} 26. Rxa7 {[%clk 0:01:20.4]} 26... Rb8 {[%clk
0:00:16.4]} 27. Rd1 {[%clk 0:01:16]} 27... Qe6 {[%clk 0:00:14.6]} 28. Ng5 {[%clk
0:01:16.3]} 28... Qb6 {[%clk 0:00:12.3]} 29. Rxf7 {[%clk 0:01:08.8]} 29... Qxb5
{[%clk 0:00:07.7]} 30. Qc2 {[%clk 0:01:02.5]} 30... g6 {[%clk 0:00:06.3]} 31.
Rxh7 {[%clk 0:01:00.9]} 31... Ne5 {[%clk 0:00:05.4]} 32. Qe4 {[%clk 0:00:54.2]}
32... Qb3 {[%clk 0:00:03.6]} 33. Rf1 {[%clk 0:00:47.5]} 33... Rbe8 {[%clk
0:00:02.8]} 34. f4 {[%clk 0:00:45.4]} 34... Qc4 {[%clk 0:00:01.8]} 35. Qb7
{[%clk 0:00:29.6]} 35... Rf7 {[%clk 0:00:00.8]} 36. Nxf7 {[%clk 0:00:25.9]}
36... Nxf7 {[%clk 0:00:01.4]} 37. Rh3 {[%clk 0:00:23]} 37... Qd4+ {[%clk
0:00:01.9]} 38. Kh1 {[%clk 0:00:23.1]} 38... Qxf4 {[%clk 0:00:02.5]} 39. Rhf3
{[%clk 0:00:22]} 1-0

[Event "Late-Titled-Tuesday-Blitz-May-28-2024"]
[Site "Chess.com"]
[Date "2024.05.28"]
[Round "8"]
[White "katharinareinecke"]
[Black "ritanovikova"]
[Result "1-0"]
[WhiteElo "1956"]
[BlackElo "2153"]
[TimeControl "180+1"]
[EndTime "15:28:31 PDT"]
[Termination "katharinareinecke won by resignation"]

1. d4 {[%clk 0:03:00.9]} 1... e5 {[%clk 0:02:51.8]} 2. dxe5 {[%clk 0:02:59.8]}
2... Nc6 {[%clk 0:02:51.8]} 3. Bf4 {[%clk 0:02:58.9]} 3... Qe7 {[%clk
0:02:51.6]} 4. Nf3 {[%clk 0:02:57.6]} 4... Qb4+ {[%clk 0:02:50.9]} 5. Bd2 {[%clk
0:02:40.7]} 5... Qxb2 {[%clk 0:02:49.5]} 6. Nc3 {[%clk 0:02:26.8]} 6... Nb4
{[%clk 0:02:49]} 7. Nd4 {[%clk 0:02:11.2]} 7... c5 {[%clk 0:02:31.9]} 8. Rb1
{[%clk 0:02:10.8]} 8... Qa3 {[%clk 0:02:31.6]} 9. Rb3 {[%clk 0:02:07.1]} 9...
Qa5 {[%clk 0:02:22.9]} 10. Ndb5 {[%clk 0:02:01.5]} 10... a6 {[%clk 0:02:19.5]}
11. Nd6+ {[%clk 0:01:57.5]} 11... Bxd6 {[%clk 0:02:18.9]} 12. exd6 {[%clk
0:01:58.4]} 12... Qd8 {[%clk 0:01:46.9]} 13. a3 {[%clk 0:01:53.4]} 13... Nc6
{[%clk 0:01:45.3]} 14. Nd5 {[%clk 0:01:53.6]} 14... Kf8 {[%clk 0:01:43.6]} 15.
e4 {[%clk 0:01:32.7]} 15... h6 {[%clk 0:01:41.9]} 16. Bc4 {[%clk 0:01:28]} 16...
Nf6 {[%clk 0:01:41]} 17. O-O {[%clk 0:01:22.4]} 17... b5 {[%clk 0:01:39.1]} 18.
Be2 {[%clk 0:00:50.5]} 18... Nxe4 {[%clk 0:01:36]} 19. Rf3 {[%clk 0:00:39.1]}
19... Nd4 {[%clk 0:01:27]} 20. Rf4 {[%clk 0:00:30.4]} 20... Nxd6 {[%clk
0:01:26.8]} 21. Bc3 {[%clk 0:00:25]} 21... Qg5 {[%clk 0:01:09.2]} 22. Bxd4
{[%clk 0:00:19.2]} 22... cxd4 {[%clk 0:00:57.6]} 23. Qxd4 {[%clk 0:00:18.8]}
23... h5 {[%clk 0:00:22.7]} 24. h4 {[%clk 0:00:18.2]} 24... Qe7 {[%clk
0:00:21.3]} 25. Nxe7 {[%clk 0:00:17.5]} 25... Kxe7 {[%clk 0:00:22.2]} 26. Re4+
{[%clk 0:00:17.2]} 26... Nxe4 {[%clk 0:00:21.8]} 27. Qxe4+ {[%clk 0:00:17.6]}
27... Kf6 {[%clk 0:00:21.5]} 28. Qxa8 {[%clk 0:00:18.1]} 28... Re8 {[%clk
0:00:20.1]} 29. Qf3+ {[%clk 0:00:17.1]} 29... Ke7 {[%clk 0:00:19.2]} 30. Bd3
{[%clk 0:00:17.1]} 30... Kd8 {[%clk 0:00:19]} 31. Kh2 {[%clk 0:00:16.6]} 31...
d6 {[%clk 0:00:18.3]} 32. Qc6 {[%clk 0:00:16.3]} 32... Bd7 {[%clk 0:00:17.6]}
33. Qxd6 {[%clk 0:00:16.5]} 33... Re6 {[%clk 0:00:17.2]} 34. Qf8+ {[%clk
0:00:15.8]} 34... Be8 {[%clk 0:00:15.5]} 35. Qxg7 {[%clk 0:00:15.8]} 35... Rg6
{[%clk 0:00:15.4]} 36. Qd4+ {[%clk 0:00:15.7]} 36... Ke7 {[%clk 0:00:14.9]} 37.
Bxg6 {[%clk 0:00:16.1]} 37... fxg6 {[%clk 0:00:14.5]} 38. Re1+ {[%clk
0:00:16.5]} 1-0

[Event "Late-Titled-Tuesday-Blitz-May-28-2024"]
[Site "Chess.com"]
[Date "2024.05.28"]
[Round "8"]
[White "WPWPWP-2015"]
[Black "ZachHKL"]
[Result "0-1"]
[WhiteElo "2503"]
[BlackElo "2385"]
[TimeControl "180+1"]
[EndTime "15:28:35 PDT"]
[Termination "ZachHKL won on time"]

1. e4 {[%clk 0:03:00.9]} 1... c5 {[%clk 0:02:59.8]} 2. Nf3 {[%clk 0:02:58.3]}
2... d6 {[%clk 0:02:59.9]} 3. d4 {[%clk 0:02:56.8]} 3... cxd4 {[%clk 0:03:00.8]}
4. Nxd4 {[%clk 0:02:57.3]} 4... Nf6 {[%clk 0:03:01.4]} 5. Nc3 {[%clk 0:02:57.3]}
5... g6 {[%clk 0:03:01.8]} 6. Bg5 {[%clk 0:02:53.6]} 6... Bg7 {[%clk 0:03:01.5]}
7. Bc4 {[%clk 0:02:49.3]} 7... O-O {[%clk 0:03:01.1]} 8. Qd2 {[%clk 0:02:48.7]}
8... Nc6 {[%clk 0:02:59.3]} 9. Nde2 {[%clk 0:02:46.9]} 9... Qb6 {[%clk
0:02:56.1]} 10. Bb3 {[%clk 0:02:44.4]} 10... Qa5 {[%clk 0:02:44.4]} 11. h4
{[%clk 0:02:39.3]} 11... h5 {[%clk 0:02:43.1]} 12. Bh6 {[%clk 0:02:31.6]} 12...
Nxe4 {[%clk 0:02:39.5]} 13. Nxe4 {[%clk 0:02:29.1]} 13... Bxh6 {[%clk
0:02:38.9]} 14. Qxa5 {[%clk 0:02:18.1]} 14... Nxa5 {[%clk 0:02:37.7]} 15. Nd4
{[%clk 0:02:08.2]} 15... Bg7 {[%clk 0:02:32.3]} 16. O-O-O {[%clk 0:02:04.5]}
16... Nxb3+ {[%clk 0:02:23.3]} 17. axb3 {[%clk 0:02:03.2]} 17... Bd7 {[%clk
0:02:19.3]} 18. f3 {[%clk 0:02:01.8]} 18... a5 {[%clk 0:02:17.3]} 19. Nc3 {[%clk
0:02:00.4]} 19... Rab8 {[%clk 0:02:12.8]} 20. Nd5 {[%clk 0:01:55.1]} 20... e6
{[%clk 0:02:05.6]} 21. Nb6 {[%clk 0:01:54.2]} 21... Rfd8 {[%clk 0:02:03.3]} 22.
Nc4 {[%clk 0:01:45.3]} 22... d5 {[%clk 0:01:55.7]} 23. Nb6 {[%clk 0:01:33.7]}
23... Be8 {[%clk 0:01:51.7]} 24. g4 {[%clk 0:01:32]} 24... Rd6 {[%clk
0:01:49.3]} 25. Na4 {[%clk 0:01:29.4]} 25... b5 {[%clk 0:01:48.1]} 26. Nc5
{[%clk 0:01:26.5]} 26... Rc8 {[%clk 0:01:47.3]} 27. b4 {[%clk 0:01:14.6]} 27...
axb4 {[%clk 0:01:43.3]} 28. Ncb3 {[%clk 0:01:12.6]} 28... e5 {[%clk 0:01:41.5]}
29. Ne2 {[%clk 0:01:08]} 29... hxg4 {[%clk 0:01:40.4]} 30. fxg4 {[%clk
0:01:07.3]} 30... Rdc6 {[%clk 0:01:40.2]} 31. Rd2 {[%clk 0:01:04.9]} 31... Bd7
{[%clk 0:01:38.6]} 32. g5 {[%clk 0:01:02.6]} 32... Bf5 {[%clk 0:01:38.5]} 33. c3
{[%clk 0:00:59.5]} 33... bxc3 {[%clk 0:01:37.8]} 34. bxc3 {[%clk 0:00:59.5]}
34... d4 {[%clk 0:01:37.7]} 35. Ra2 {[%clk 0:00:46.5]} 35... b4 {[%clk
0:01:35.7]} 36. Na5 {[%clk 0:00:42.4]} 36... Ra6 {[%clk 0:01:30.6]} 37. Ra4
{[%clk 0:00:10.8]} 37... bxc3 {[%clk 0:01:28.8]} 38. Ng3 {[%clk 0:00:10.2]}
38... Rca8 {[%clk 0:01:26.7]} 39. Nxf5 {[%clk 0:00:09.7]} 39... gxf5 {[%clk
0:01:27.6]} 40. Kc2 {[%clk 0:00:09.6]} 40... Rxa5 {[%clk 0:01:27.7]} 41. Rb4
{[%clk 0:00:09.9]} 41... Ra2+ {[%clk 0:01:27.5]} 42. Kd3 {[%clk 0:00:10]} 42...
Rd2+ {[%clk 0:01:26.9]} 43. Kc4 {[%clk 0:00:10.2]} 43... Rc8+ {[%clk 0:01:25.8]}
44. Kd5 {[%clk 0:00:09.9]} 44... c2 {[%clk 0:01:25.3]} 45. Rc1 {[%clk
0:00:09.7]} 45... Rd1 {[%clk 0:01:25.1]} 46. Rxc2 {[%clk 0:00:09.6]} 46... Rxc2
{[%clk 0:01:24.4]} 47. h5 {[%clk 0:00:09.7]} 47... Rg2 {[%clk 0:01:22]} 48. h6
{[%clk 0:00:04]} 48... Bh8 {[%clk 0:01:18.9]} 49. Kd6 {[%clk 0:00:03.4]} 49...
Rxg5 {[%clk 0:01:17.5]} 50. Ke7 {[%clk 0:00:03.8]} 50... Rdg1 {[%clk 0:01:13.4]}
51. Rb8+ {[%clk 0:00:03.1]} 51... Kh7 {[%clk 0:01:13.6]} 52. Kxf7 {[%clk
0:00:02.8]} 52... Rg8 {[%clk 0:01:10.1]} 53. Rb7 {[%clk 0:00:02.3]} 53... R1g6
{[%clk 0:01:10.1]} 54. Re7 {[%clk 0:00:01.4]} 54... R8g7+ {[%clk 0:01:08.8]} 55.
hxg7 {[%clk 0:00:01]} 55... Rxg7+ {[%clk 0:01:09.7]} 56. Kf8 {[%clk 0:00:01]}
56... Rxe7 {[%clk 0:01:10.6]} 57. Kxe7 {[%clk 0:00:01.3]} 57... e4 {[%clk
0:01:10.8]} 58. Ke6 {[%clk 0:00:01.5]} 58... f4 {[%clk 0:01:11.4]} 59. Kf5
{[%clk 0:00:01.8]} 59... f3 {[%clk 0:01:11]} 60. Kxe4 {[%clk 0:00:02]} 60... f2
{[%clk 0:01:11.6]} 0-1

[Event "Late-Titled-Tuesday-Blitz-May-28-2024"]
[Site "Chess.com"]
[Date "2024.05.28"]
[Round "8"]
[White "GMBenjaminFinegold"]
[Black "yobdc"]
[Result "1-0"]
[WhiteElo "2742"]
[BlackElo "2539"]
[TimeControl "180+1"]
[EndTime "15:28:37 PDT"]
[Termination "GMBenjaminFinegold won on time"]

1. d4 {[%clk 0:03:00.9]} 1... Nf6 {[%clk 0:02:59.3]} 2. c4 {[%clk 0:03:00.4]}
2... g6 {[%clk 0:02:59.8]} 3. Nc3 {[%clk 0:03:00.2]} 3... Bg7 {[%clk 0:03:00.3]}
4. e4 {[%clk 0:03:00]} 4... d6 {[%clk 0:03:00.8]} 5. Be2 {[%clk 0:03:00.6]} 5...
O-O {[%clk 0:03:00.9]} 6. Nf3 {[%clk 0:03:01.4]} 6... e5 {[%clk 0:03:01.1]} 7.
dxe5 {[%clk 0:03:02.3]} 7... dxe5 {[%clk 0:02:59.5]} 8. Qxd8 {[%clk 0:03:03.2]}
8... Rxd8 {[%clk 0:02:59.9]} 9. Bg5 {[%clk 0:03:04.1]} 9... Re8 {[%clk
0:02:52.9]} 10. O-O-O {[%clk 0:03:03.4]} 10... Na6 {[%clk 0:02:29.6]} 11. Ne1
{[%clk 0:03:03]} 11... c6 {[%clk 0:02:26.2]} 12. Nc2 {[%clk 0:03:01.8]} 12...
Nc5 {[%clk 0:02:16.7]} 13. f3 {[%clk 0:03:01.6]} 13... a5 {[%clk 0:02:16.7]} 14.
Be3 {[%clk 0:03:00.5]} 14... Bf8 {[%clk 0:02:15.1]} 15. Rd2 {[%clk 0:02:57]}
15... Ne6 {[%clk 0:01:50.7]} 16. Rhd1 {[%clk 0:02:56.6]} 16... Bc5 {[%clk
0:01:50.2]} 17. Bxc5 {[%clk 0:02:52.3]} 17... Nxc5 {[%clk 0:01:51.1]} 18. Rd8
{[%clk 0:02:44.9]} 18... Bd7 {[%clk 0:01:45.1]} 19. Rxa8 {[%clk 0:02:41.1]}
19... Rxa8 {[%clk 0:01:46]} 20. b3 {[%clk 0:02:37]} 20... Be6 {[%clk 0:01:35.2]}
21. Kb2 {[%clk 0:02:36.5]} 21... h5 {[%clk 0:01:08.2]} 22. h4 {[%clk 0:02:27.6]}
22... Ne8 {[%clk 0:01:02.4]} 23. a3 {[%clk 0:02:26.6]} 23... Nc7 {[%clk
0:01:01.3]} 24. b4 {[%clk 0:02:25.1]} 24... axb4 {[%clk 0:01:01.6]} 25. axb4
{[%clk 0:02:25.1]} 25... Nd7 {[%clk 0:00:58.6]} 26. c5 {[%clk 0:02:13.7]} 26...
Kf8 {[%clk 0:00:55.5]} 27. Ne3 {[%clk 0:02:10.7]} 27... Ke7 {[%clk 0:00:51.4]}
28. Nc4 {[%clk 0:02:10.5]} 28... Bxc4 {[%clk 0:00:50.3]} 29. Bxc4 {[%clk
0:02:11.4]} 29... Ne6 {[%clk 0:00:45.5]} 30. Bxe6 {[%clk 0:02:11.4]} 30... Kxe6
{[%clk 0:00:46.4]} 31. Kb3 {[%clk 0:02:10.9]} 31... f6 {[%clk 0:00:41.6]} 32.
Na4 {[%clk 0:02:03.4]} 32... Rg8 {[%clk 0:00:40.1]} 33. Kc4 {[%clk 0:01:58.8]}
33... g5 {[%clk 0:00:36.9]} 34. hxg5 {[%clk 0:01:58.8]} 34... Rxg5 {[%clk
0:00:36.8]} 35. Rd2 {[%clk 0:01:58.9]} 35... h4 {[%clk 0:00:36.1]} 36. Nb6
{[%clk 0:01:54.7]} 36... Nxb6+ {[%clk 0:00:27.3]} 37. cxb6 {[%clk 0:01:55.6]}
37... Ke7 {[%clk 0:00:16.6]} 38. Ra2 {[%clk 0:01:53.9]} 38... Rg8 {[%clk
0:00:14.2]} 39. Ra7 {[%clk 0:01:51.3]} 39... Rb8 {[%clk 0:00:14.3]} 40. Kc5
{[%clk 0:01:50.6]} 40... Kd7 {[%clk 0:00:14.1]} 41. Ra2 {[%clk 0:01:49.4]} 41...
Rg8 {[%clk 0:00:14.1]} 42. Rd2+ {[%clk 0:01:49.3]} 42... Ke7 {[%clk 0:00:14.1]}
43. Ra2 {[%clk 0:01:46]} 43... Kd7 {[%clk 0:00:13.5]} 44. b5 {[%clk 0:01:44.9]}
44... cxb5 {[%clk 0:00:10.4]} 45. Kxb5 {[%clk 0:01:45.8]} 45... Rc8 {[%clk
0:00:09.8]} 46. Ra7 {[%clk 0:01:44.8]} 46... Rb8 {[%clk 0:00:09.9]} 47. Kc5
{[%clk 0:01:45.2]} 47... Ke6 {[%clk 0:00:08.9]} 48. Ra2 {[%clk 0:01:43.6]} 48...
Rc8+ {[%clk 0:00:09.2]} 49. Kb5 {[%clk 0:01:44.1]} 49... Rc1 {[%clk 0:00:07.6]}
50. Ra7 {[%clk 0:01:42.5]} 50... Rb1+ {[%clk 0:00:07.9]} 51. Kc5 {[%clk
0:01:41.5]} 51... Rc1+ {[%clk 0:00:07.5]} 52. Kb5 {[%clk 0:01:41.6]} 52... Rb1+
{[%clk 0:00:07.9]} 53. Ka5 {[%clk 0:01:41.4]} 53... Ra1+ {[%clk 0:00:06.8]} 54.
Kb4 {[%clk 0:01:41.6]} 54... Rb1+ {[%clk 0:00:07.2]} 55. Kc3 {[%clk 0:01:40.8]}
55... Rxb6 {[%clk 0:00:06.9]} 56. Ra8 {[%clk 0:01:41.5]} 56... Rb1 {[%clk
0:00:06.7]} 57. Rh8 {[%clk 0:01:40.6]} 57... Rg1 {[%clk 0:00:06.5]} 58. Rxh4
{[%clk 0:01:40.4]} 58... Rxg2 {[%clk 0:00:07]} 59. Rh7 {[%clk 0:01:35.8]} 59...
Rg3 {[%clk 0:00:07.3]} 60. Rxb7 {[%clk 0:01:35]} 60... Rxf3+ {[%clk 0:00:07.6]}
61. Kc4 {[%clk 0:01:35.6]} 61... Re3 {[%clk 0:00:06.5]} 62. Rb6+ {[%clk
0:01:35.9]} 62... Kf7 {[%clk 0:00:06.5]} 63. Rb7+ {[%clk 0:01:33.6]} 63... Kg6
{[%clk 0:00:06.7]} 64. Kd5 {[%clk 0:01:34.3]} 64... Re1 {[%clk 0:00:04.1]} 65.
Rb8 {[%clk 0:01:33.5]} 65... Rd1+ {[%clk 0:00:04.1]} 66. Ke6 {[%clk 0:01:33.6]}
66... Rd4 {[%clk 0:00:03.5]} 67. Rg8+ {[%clk 0:01:33.3]} 67... Kh7 {[%clk
0:00:03.9]} 68. Rg4 {[%clk 0:01:33.4]} 68... Rd3 {[%clk 0:00:01.8]} 69. Kxf6
{[%clk 0:01:33.2]} 69... Re3 {[%clk 0:00:01.8]} 70. Kxe5 {[%clk 0:01:33.3]}
70... Re1 {[%clk 0:00:01.7]} 71. Kf5 {[%clk 0:01:33.5]} 71... Kh8 {[%clk
0:00:01.8]} 72. e5 {[%clk 0:01:33.6]} 72... Rf1+ {[%clk 0:00:02.3]} 73. Ke6
{[%clk 0:01:33.6]} 73... Re1 {[%clk 0:00:02.8]} 74. Kf6 {[%clk 0:01:33.8]} 74...
Rf1+ {[%clk 0:00:03.3]} 75. Ke7 {[%clk 0:01:34]} 75... Re1 {[%clk 0:00:03.6]}
76. e6 {[%clk 0:01:34.4]} 76... Re2 {[%clk 0:00:04.3]} 77. Kf7 {[%clk
0:01:34.5]} 77... Rf2+ {[%clk 0:00:04.7]} 78. Ke8 {[%clk 0:01:34.7]} 78... Re2
{[%clk 0:00:05.2]} 79. e7 {[%clk 0:01:35.1]} 79... Kh7 {[%clk 0:00:05.8]} 80.
Rd4 {[%clk 0:01:34.8]} 80... Kg7 {[%clk 0:00:05.7]} 81. Kd8 {[%clk 0:01:35.4]}
81... Kf7 {[%clk 0:00:05.6]} 82. Rf4+ {[%clk 0:01:35.6]} 1-0

[Event "Late-Titled-Tuesday-Blitz-May-28-2024"]
[Site "Chess.com"]
[Date "2024.05.28"]
[Round "8"]
[White "MatthewG-p4p"]
[Black "slidingknight2775"]
[Result "1-0"]
[WhiteElo "2847"]
[BlackElo "2626"]
[TimeControl "180+1"]
[EndTime "15:28:45 PDT"]
[Termination "MatthewG-p4p won by resignation"]

1. e4 {[%clk 0:02:49.6]} 1... c5 {[%clk 0:02:59.6]} 2. c3 {[%clk 0:02:47.7]}
2... Nf6 {[%clk 0:02:59.4]} 3. e5 {[%clk 0:02:48]} 3... Nd5 {[%clk 0:03:00]} 4.
Nf3 {[%clk 0:02:48.9]} 4... d6 {[%clk 0:02:59.6]} 5. Bc4 {[%clk 0:02:49.5]} 5...
e6 {[%clk 0:02:58.3]} 6. d4 {[%clk 0:02:48]} 6... cxd4 {[%clk 0:02:58.1]} 7.
cxd4 {[%clk 0:02:48.9]} 7... Nc6 {[%clk 0:02:58.6]} 8. O-O {[%clk 0:02:47.7]}
8... Be7 {[%clk 0:02:58.9]} 9. Bd2 {[%clk 0:02:48.3]} 9... O-O {[%clk
0:02:58.7]} 10. Nc3 {[%clk 0:02:49]} 10... Nxc3 {[%clk 0:02:58.1]} 11. Bxc3
{[%clk 0:02:49.9]} 11... dxe5 {[%clk 0:02:43.7]} 12. dxe5 {[%clk 0:02:49.4]}
12... Qxd1 {[%clk 0:02:35.6]} 13. Rfxd1 {[%clk 0:02:50.3]} 13... Rd8 {[%clk
0:02:27.4]} 14. Rxd8+ {[%clk 0:02:49]} 14... Bxd8 {[%clk 0:02:27.5]} 15. Rd1
{[%clk 0:02:49.9]} 15... Bb6 {[%clk 0:02:15.6]} 16. Bb5 {[%clk 0:02:46.2]} 16...
Kf8 {[%clk 0:02:12.5]} 17. h4 {[%clk 0:02:42.1]} 17... h6 {[%clk 0:02:11.6]} 18.
a4 {[%clk 0:02:32.8]} 18... a5 {[%clk 0:01:52.7]} 19. Bxc6 {[%clk 0:02:06.9]}
19... bxc6 {[%clk 0:01:53.6]} 20. Rd6 {[%clk 0:02:07.3]} 20... Ra6 {[%clk
0:00:55.9]} 21. Nd4 {[%clk 0:01:49.3]} 21... Bxd4 {[%clk 0:00:41.6]} 22. Bxd4
{[%clk 0:01:50.2]} 22... c5 {[%clk 0:00:28.3]} 23. Bxc5 {[%clk 0:00:39]} 23...
Rxd6 {[%clk 0:00:28]} 24. Bxd6+ {[%clk 0:00:39.9]} 24... Ke8 {[%clk 0:00:28.2]}
25. f3 {[%clk 0:00:27.3]} 25... Bd7 {[%clk 0:00:23.4]} 26. b3 {[%clk 0:00:27.7]}
26... Bc6 {[%clk 0:00:24]} 27. Kf2 {[%clk 0:00:28.2]} 27... Bd5 {[%clk
0:00:23.5]} 28. b4 {[%clk 0:00:28.9]} 28... axb4 {[%clk 0:00:21.8]} 29. Bxb4
{[%clk 0:00:29.8]} 29... Bc4 {[%clk 0:00:18.6]} 30. Ke3 {[%clk 0:00:29.2]} 30...
g6 {[%clk 0:00:16.1]} 31. g4 {[%clk 0:00:21.6]} 31... Kd7 {[%clk 0:00:15.3]} 32.
h5 {[%clk 0:00:20.2]} 32... Kc6 {[%clk 0:00:02.9]} 33. Bf8 {[%clk 0:00:13.5]}
33... Ba2 {[%clk 0:00:02.2]} 34. Bxh6 {[%clk 0:00:12.1]} 34... Bb1 {[%clk
0:00:02.8]} 35. Bf8 {[%clk 0:00:10.6]} 35... gxh5 {[%clk 0:00:02.3]} 36. gxh5
{[%clk 0:00:11.5]} 36... Kd7 {[%clk 0:00:02.9]} 37. Bb4 {[%clk 0:00:11.5]} 37...
Bf5 {[%clk 0:00:02.1]} 38. Kf4 {[%clk 0:00:11.7]} 38... Ke8 {[%clk 0:00:02.2]}
39. Kg5 {[%clk 0:00:12.1]} 39... Bd3 {[%clk 0:00:01.2]} 40. Kf6 {[%clk
0:00:12.9]} 40... Bh7 {[%clk 0:00:01.5]} 41. Kg7 {[%clk 0:00:13.1]} 41... Bd3
{[%clk 0:00:01.5]} 42. f4 {[%clk 0:00:12.9]} 42... Bc2 {[%clk 0:00:02.4]} 43. a5
{[%clk 0:00:13.1]} 43... Bh7 {[%clk 0:00:03.3]} 44. Kxh7 {[%clk 0:00:13.2]} 1-0